fUSD/lending_fUSD_20250514
["ID","MTS","AMOUNT","RATE_DAILY","PERIOD"]
[361015766,1747205468026,-500.0,0.00011498,2]
[361015767,1747205468036,-500.0,0.00011498,2]
[361015768,1747205468045,-500.0,0.00011498,2]
[361015769,1747205468054,-505.0,0.00011498,2]
[361015770,1747205468063,-298.26089446,0.00011499,2]
[361015771,1747205468074,-693.3919763,0.00011499,2]
[361015772,1747205468083,-400.0,0.00011506,2]
[361015773,1747205468092,-199.370519,0.00011506,2]
[361015774,1747205468164,-199.370519,0.00011506,2]
[361015775,1747205468173,-151.0,0.00011506,2]
[361015776,1747205468183,-151.0,0.00011506,2]
[361015777,1747205468192,-151.0,0.00011506,2]
[361015778,1747205468201,-262.551324,0.00011506,2]
[361015779,1747205468210,-262.551324,0.00011506,2]
[361015780,1747205468219,-299.840888,0.00011506,2]
[361015781,1747205468228,-299.840888,0.00011506,2]
[361015782,1747205468238,-151.0,0.00011506,2]
[361015783,1747205468247,-151.0,0.00011506,2]
[361015784,1747205468256,-188.402192,0.00011506,2]
[361015785,1747205468266,-188.402192,0.00011506,2]
[361015786,1747205468275,-151.0,0.00011506,2]
[361015787,1747205468284,-356.432576,0.00011506,2]
[361015788,1747205468293,-356.432576,0.00011506,2]
[361015789,1747205468303,-151.0,0.00011506,2]
[361015790,1747205468312,-151.0,0.00011506,2]
[361015791,1747205468321,-151.0,0.00011506,2]
[361015792,1747205468330,-151.0,0.00011506,2]
[361015793,1747205468339,-151.0,0.00011506,2]
[361015794,1747205468348,-151.0,0.00011506,2]
[361015795,1747205468357,-151.0,0.00011506,2]
[361015796,1747205468367,-664.738684,0.00011506,2]
[361015797,1747205468376,-664.738684,0.00011506,2]
[361015798,1747205468386,-151.0,0.00011506,2]
[361015799,1747205468395,-151.0,0.00011506,2]
[361015800,1747205468404,-151.0,0.00011506,2]
[361015801,1747205468414,-409.15918997,0.00011506,2]
[361015802,1747205468423,-151.0,0.00011506,2]
[361015803,1747205468432,-400.0,0.00011506,2]
[361015804,1747205468441,-163.252466,0.00011506,2]
[361015805,1747205468450,-400.0,0.00011506,2]
[361015806,1747205468460,-400.0,0.00011506,2]
[361015807,1747205468469,-151.0,0.00011506,2]
[361015808,1747205468479,-151.0,0.00011506,2]
[361015809,1747205468488,-784.24,0.00011506,2]
[361015810,1747205468498,-400.0,0.00011506,2]
[361015811,1747205468506,-400.0,0.00011506,2]
[361015812,1747205468515,-400.0,0.00011506,2]
[361015813,1747205468524,-400.0,0.00011506,2]
[361015814,1747205468534,-400.0,0.00011506,2]
[361015815,1747205468543,-2739.055622,0.00011506,2]
[361015816,1747205468552,-400.0,0.00011506,2]
[361015817,1747205468562,-400.0,0.00011506,2]
[361015818,1747205468571,-2739.055622,0.00011506,2]
[361015819,1747205468581,-400.0,0.00011506,2]
[361015820,1747205468590,-400.0,0.00011506,2]
[361015821,1747205468599,-400.0,0.00011506,2]
[361015822,1747205468608,-400.0,0.00011506,2]
[361015823,1747205468618,-400.0,0.00011506,2]
[361015824,1747205468627,-400.0,0.00011506,2]
[361015825,1747205468636,-400.0,0.00011506,2]
[361015826,1747205468644,-400.0,0.00011506,2]
[361015827,1747205468653,-400.0,0.00011506,2]
[361015828,1747205468661,-400.0,0.00011506,2]
[361015829,1747205468669,-548.55908661,0.00011506,2]
[361015830,1747205468678,-392.51732524,0.00011506,2]
[361015831,1747205468687,-400.0,0.00011506,2]
[361015832,1747205468696,-400.0,0.00011506,2]
[361015833,1747205468705,-936.13,0.00011506,2]
[361015834,1747205468714,-151.0,0.00011506,2]
[361015835,1747205468723,-400.0,0.00011506,2]
[361015836,1747205468733,-502.17,0.00011506,2]
[361015837,1747205468743,-400.0,0.00011506,2]
[361015838,1747205468753,-151.0,0.00011506,2]
[361015839,1747205468762,-400.0,0.00011506,2]
[361015840,1747205468771,-400.0,0.00011506,2]
[361015841,1747205468781,-400.0,0.00011506,2]
[361015842,1747205468790,-400.0,0.00011506,2]
[361015843,1747205468799,-601.79,0.00011506,2]
[361015844,1747205468808,-400.0,0.00011506,2]
[361015845,1747205468817,-318.77569578,0.00011506,2]
[361015846,1747205468826,-400.0,0.00011506,2]
[361015847,1747205468835,-400.0,0.00011506,2]
[361015848,1747205468844,-450.62,0.00011506,2]
[361015849,1747205468854,-1229.31,0.00011506,2]
[361015850,1747205468864,-400.0,0.00011506,2]
[361015851,1747205468873,-1459.81,0.00011506,2]
[361015852,1747205468883,-400.0,0.00011506,2]
[361015853,1747205468892,-388.71382582,0.00011506,2]
[361015854,1747205527503,150.6075237,0.00025,60]
[361015856,1747205781902,207.07809828,0.00025,120]
[361015857,1747205816817,150.0,0.00010396,7]
[361015858,1747205828300,1001.0,0.00025,60]
[361015859,1747205858200,-263.08,0.000219,31]
[361015860,1747205858232,-263.08,0.000219,31]
[361015861,1747205858266,-263.08,0.000219,31]
[361015862,1747205858297,-263.08,0.000219,31]
[361015863,1747205858328,-263.08,0.000219,31]
[361015864,1747205858359,-263.08,0.000219,31]
[361015865,1747205858390,-263.08,0.000219,31]
[361015866,1747205858421,-263.08,0.000219,31]
[361015867,1747205858452,-263.08,0.000219,31]
[361015868,1747205858483,-263.08,0.000219,31]
[361015869,1747205858515,-263.08,0.000219,31]
[361015870,1747205858546,-263.08,0.000219,31]
[361015871,1747205858578,-263.08,0.000219,31]
[361015872,1747205858608,-263.08,0.000219,31]
[361015873,1747205858639,-263.08,0.000219,31]
[361015874,1747205858671,-263.08,0.000219,31]
[361015875,1747205858698,-1905.75,0.00021945,30]
[361015876,1747205858728,-204.16604681,0.00024252,30]
[361015877,1747205858754,-538.51033058,0.00024657,30]
[361015878,1747205858789,-263.08,0.000248,31]
[361015879,1747205858821,-263.08,0.000248,31]
[361015880,1747205859223,-263.08,0.000248,31]
[361015881,1747205859256,-263.08,0.000248,31]
[361015882,1747205859288,-263.08,0.000248,31]
[361015883,1747205859318,-263.08,0.000248,31]
[361015884,1747205859350,-263.08,0.000248,31]
[361015885,1747205859382,-263.08,0.000248,31]
[361015886,1747205859412,-263.08,0.000248,31]
[361015887,1747205859443,-263.08,0.000248,31]
[361015888,1747205859475,-263.08,0.000248,31]
[361015889,1747205859506,-263.08,0.000248,31]
[361015890,1747205859537,-263.08,0.000248,31]
[361015891,1747205859568,-263.08,0.000248,31]
[361015892,1747205859600,-263.08,0.000248,31]
[361015893,1747205859632,-263.08,0.000248,31]
[361015894,1747205859667,-263.08,0.000248,31]
[361015895,1747205859703,-263.08,0.000248,31]
[361015896,1747205859739,-263.08,0.000248,31]
[361015897,1747205859774,-263.08,0.000248,31]
[361015898,1747205859810,-263.08,0.000248,31]
[361015899,1747205859844,-263.08,0.000248,31]
[361015900,1747205859875,-263.08,0.000248,31]
[361015901,1747205859907,-263.08,0.000248,31]
[361015902,1747205859932,-27440.10686831,0.00025,30]
[361015903,1747205859956,-586.9404426,0.00025,30]
[361015904,1747205859980,-3183.6076364,0.00025,30]
[361015905,1747205860006,-1333.0,0.00026137,120]
[361015906,1747205860034,-500.0,0.00027,120]
[361015907,1747205860061,-291.15,0.00027,120]
[361015908,1747205860089,-2000.0,0.00027397,30]
[361015909,1747205860112,-2000.0,0.00027397,30]
[361015910,1747205860137,-2000.0,0.00027397,30]
[361015911,1747205860160,-1293.6635834,0.00027397,30]
[361015912,1747205860184,-450.0,0.00027397,30]
[361015913,1747205860210,-450.0,0.00027397,30]
[361015914,1747205860235,-450.0,0.00027397,30]
[361015915,1747205860258,-450.0,0.00027397,30]
[361015916,1747205860282,-450.0,0.00027397,30]
[361015917,1747205860305,-450.0,0.00027397,30]
[361015918,1747205860328,-450.0,0.00027397,30]
[361015919,1747205860352,-450.0,0.00027397,30]
[361015920,1747205860376,-450.0,0.00027397,30]
[361015921,1747205860399,-450.0,0.00027397,30]
[361015922,1747205860423,-450.0,0.00027397,30]
[361015923,1747205860447,-450.0,0.00027397,30]
[361015924,1747205860471,-450.0,0.00027397,30]
[361015925,1747205860495,-321.04701095,0.00027397,30]
[361015926,1747205860519,-200.0,0.00027397,60]
[361015927,1747205860545,-188.45,0.00027397,30]
[361015928,1747205860578,-263.08,0.000277,31]
[361015929,1747205860624,-263.08,0.000277,31]
[361015930,1747205860657,-263.08,0.000277,31]
[361015931,1747205860691,-263.08,0.000277,31]
[361015932,1747205860723,-263.08,0.000277,31]
[361015933,1747205860755,-263.08,0.000277,31]
[361015934,1747205860786,-263.08,0.000277,31]
[361015935,1747205860817,-263.08,0.000277,31]
[361015936,1747205860850,-263.08,0.000277,31]
[361015937,1747205860884,-263.08,0.000277,31]
[361015938,1747205860915,-263.08,0.000277,31]
[361015939,1747205860947,-263.08,0.000277,31]
[361015940,1747205860980,-263.08,0.000277,31]
[361015941,1747205861013,-263.08,0.000277,31]
[361015942,1747205861048,-263.08,0.000277,31]
[361015943,1747205861083,-263.08,0.000277,31]
[361015944,1747205861115,-263.08,0.000277,31]
[361015945,1747205861149,-263.08,0.000277,31]
[361015946,1747205861181,-263.08,0.000277,31]
[361015947,1747205861214,-263.08,0.000277,31]
[361015948,1747205861245,-263.08,0.000277,31]
[361015949,1747205861278,-263.08,0.000277,31]
[361015950,1747205861311,-263.08,0.000277,31]
[361015951,1747205861342,-263.08,0.000277,31]
[361015952,1747205861369,-1000.0,0.00028,120]
[361015953,1747205861405,-150.0,0.00028,120]
[361015954,1747205861431,-500.0,0.00028767,30]
[361015955,1747205861456,-707.58610564,0.00029,120]
[361015956,1747205861482,-1800.0,0.00029,30]
[361015957,1747205861508,-500.0,0.00029315,30]
[361015958,1747205861534,-1039.41267471,0.000295,120]
[361015959,1747205861560,-500.0,0.00029589,30]
[361015960,1747205861585,-500.0,0.00029589,30]
[361015961,1747205861611,-500.0,0.00029589,30]
[361015962,1747205861637,-289.44365326,0.00029589,30]
[361015963,1747205861663,-527.66809199,0.000298,30]
[361015964,1747205861689,-800.0,0.000298,30]
[361015965,1747205861714,-500.0,0.00029863,30]
[361015966,1747205861739,-500.0,0.00029863,30]
[361015967,1747205861764,-500.0,0.00029863,30]
[361015968,1747205861790,-500.0,0.00029863,30]
[361015969,1747205861816,-650.0,0.0003,30]
[361015970,1747205861842,-629.10358244,0.0003,120]
[361015971,1747205861867,-496.04009172,0.0003,120]
[361015972,1747205861893,-450.0,0.0003,30]
[361015973,1747205861918,-1800.0,0.0003,31]
[361015974,1747205861945,-1000.0,0.0003,120]
[361015975,1747205861972,-300.0,0.0003,30]
[361015976,1747205861999,-324.52025087,0.0003,30]
[361015977,1747205862026,-1000.0,0.0003013,120]
[361015978,1747205862057,-500.0,0.00030136,30]
[361015979,1747205862086,-500.0,0.00030136,30]
[361015980,1747205862112,-500.0,0.00030136,30]
[361015981,1747205862138,-200.0,0.00030137,60]
[361015982,1747205862163,-500.0,0.0003041,30]
[361015983,1747205862188,-184.14061848,0.0003041,30]
[361015984,1747205862216,-500.0,0.0003041,30]
[361015985,1747205862461,-500.0,0.0003041,30]
[361015986,1747205862495,-263.08,0.000306,31]
[361015987,1747205862527,-263.08,0.000306,31]
[361015988,1747205862560,-263.08,0.000306,31]
[361015989,1747205862592,-263.08,0.000306,31]
[361015990,1747205862623,-263.08,0.000306,31]
[361015991,1747205862654,-263.08,0.000306,31]
[361015992,1747205862684,-263.08,0.000306,31]
[361015993,1747205862716,-263.08,0.000306,31]
[361015994,1747205862748,-263.08,0.000306,31]
[361015995,1747205862779,-263.08,0.000306,31]
[361015996,1747205862813,-263.08,0.000306,31]
[361015997,1747205862845,-263.08,0.000306,31]
[361015998,1747205862881,-263.08,0.000306,31]
[361015999,1747205862914,-263.08,0.000306,31]
[361016000,1747205862943,-263.08,0.000306,31]
[361016001,1747205862974,-263.08,0.000306,31]
[361016002,1747205863006,-263.08,0.000306,31]
[361016003,1747205863039,-263.08,0.000306,31]
[361016004,1747205863070,-263.08,0.000306,31]
[361016005,1747205863100,-263.08,0.000306,31]
[361016006,1747205863136,-263.08,0.000306,31]
[361016007,1747205863168,-263.08,0.000306,31]
[361016008,1747205863201,-263.08,0.000306,31]
[361016009,1747205863235,-263.08,0.000306,31]
[361016010,1747205863259,-548.0,0.00030613,30]
[361016011,1747205863284,-500.0,0.00030684,30]
[361016012,1747205863308,-409.84728464,0.00030684,30]
[361016013,1747205863333,-250.0,0.000308,30]
[361016014,1747205863358,-500.0,0.00030958,30]
[361016015,1747205863383,-419.73666845,0.00030958,30]
[361016016,1747205863407,-2044.0,0.00031,30]
[361016017,1747205863432,-1800.0,0.00031,32]
[361016018,1747205863457,-500.0,0.00031232,30]
[361016019,1747205863482,-500.0,0.00031506,30]
[361016020,1747205863507,-500.0,0.0003178,30]
[361016021,1747205863531,-153.52027873,0.00032,30]
[361016022,1747205863557,-1000.0,0.00032,120]
[361016023,1747205863580,-900.0,0.00032,33]
[361016024,1747205863605,-500.0,0.00032054,30]
[361016025,1747205863631,-547.66080911,0.00032055,30]
[361016026,1747205863659,-500.0,0.00032328,30]
[361016027,1747205863685,-500.0,0.00032602,30]
[361016028,1747205863710,-282.41,0.0003287,120]
[361016029,1747205863736,-500.0,0.00032876,30]
[361016030,1747205863761,-500.0,0.00032876,120]
[361016031,1747205863788,-500.0,0.00032876,120]
[361016032,1747205863813,-500.0,0.00032876,120]
[361016033,1747205863840,-500.0,0.00032876,120]
[361016034,1747205863866,-500.0,0.00032876,120]
[361016035,1747205863892,-500.0,0.00032876,120]
[361016036,1747205863917,-500.0,0.00032876,120]
[361016037,1747205863942,-500.0,0.00032876,120]
[361016038,1747205863969,-500.0,0.00032876,120]
[361016039,1747205863994,-500.0,0.00032876,120]
[361016040,1747205864019,-500.0,0.00032876,120]
[361016041,1747205864046,-500.0,0.00032876,120]
[361016042,1747205864071,-269.0,0.00032876,120]
[361016043,1747205864100,-223.77037112,0.00032877,60]
[361016044,1747205864127,-397.80101665,0.000329,30]
[361016045,1747205864152,-900.0,0.00033,34]
[361016046,1747205864177,-433.76945732,0.00033,120]
[361016047,1747205864206,-342.51695919,0.0003315,30]
[361016048,1747205864240,-263.08,0.000335,31]
[361016049,1747205864273,-263.08,0.000335,31]
[361016050,1747205864305,-263.08,0.000335,31]
[361016051,1747205864338,-263.08,0.000335,31]
[361016052,1747205864370,-263.08,0.000335,31]
[361016053,1747205864402,-263.08,0.000335,31]
[361016054,1747205864434,-263.08,0.000335,31]
[361016055,1747205864469,-263.08,0.000335,31]
[361016056,1747205864502,-263.08,0.000335,31]
[361016057,1747205864535,-263.08,0.000335,31]
[361016058,1747205864568,-263.08,0.000335,31]
[361016059,1747205864601,-263.08,0.000335,31]
[361016060,1747205864626,-768.0,0.00033674,30]
[361016061,1747205864651,-585.4632959,0.000339,120]
[361016062,1747205864677,-940.41093176,0.00033974,60]
[361016063,1747205864702,-261.61234706,0.00033974,60]
[361016064,1747205864729,-900.0,0.00034,35]
[361016065,1747205864753,-1914.4277161,0.00034,40]
[361016066,1747205864779,-1000.0,0.00034,120]
[361016067,1747205864806,-1250.52091507,0.000349,120]
[361016068,1747205864830,-522.90300993,0.00035,30]
[361016069,1747205864856,-151.68151135,0.00035,30]
[361016070,1747205864883,-900.0,0.00035,36]
[361016071,1747205864910,-560.18632631,0.00035014,90]
[361016072,1747205864935,-907.55,0.000351,30]
[361016073,1747205864963,-1905.75,0.0003564,30]
[361016074,1747205864989,-2761.589,0.00035729,43]
[361016075,1747205865013,-1374.1977,0.00035888,30]
[361016076,1747205865039,-900.0,0.00036,37]
[361016077,1747205865064,-2000.0,0.00036,60]
[361016078,1747205865091,-1000.0,0.00036,120]
[361016079,1747205865118,-1374.1977,0.00036088,30]
[361016080,1747205865144,-1374.1977,0.00036288,30]
[361016081,1747205865170,-1374.1977,0.00036488,30]
[361016082,1747205865196,-333.67724647,0.00036493,120]
[361016083,1747205865223,-1374.1977,0.00036688,30]
[361016084,1747205865247,-1374.1977,0.00036888,30]
[361016085,1747205865274,-500.0,0.00037,120]
[361016086,1747205865301,-900.0,0.00037,38]
[361016087,1747205865327,-1075.0,0.00037042,30]
[361016088,1747205865352,-1374.1977,0.00037088,30]
[361016089,1747205865594,-1908.8720961,0.000372,120]
[361016090,1747205865620,-1908.87209606,0.000372,120]
[361016091,1747205865646,-1908.87209606,0.000372,120]
[361016092,1747205865672,-1908.87209606,0.000372,120]
[361016093,1747205865699,-1908.87209606,0.000372,120]
[361016094,1747205865725,-1374.1977,0.00037288,30]
[361016095,1747205865751,-1374.1977,0.00037488,30]
[361016096,1747205865778,-1374.1977,0.00037688,30]
[361016097,1747205865803,-1374.1977,0.00037888,30]
[361016098,1747205865830,-900.0,0.00038,39]
[361016099,1747205865855,-2000.0,0.00038,120]
[361016100,1747205865882,-1000.0,0.00038,120]
[361016101,1747205865907,-1374.1977,0.00038088,30]
[361016102,1747205865932,-1374.1977,0.00038288,30]
[361016103,1747205865957,-150.79020425,0.000384,33]
[361016104,1747205865983,-1374.1977,0.00038488,30]
[361016105,1747205866012,-1374.1977,0.00038688,30]
[361016106,1747205866038,-378.57600351,0.00038865,30]
[361016107,1747205866066,-900.0,0.00039,40]
[361016108,1747205866092,-331.52750113,0.00039,120]
[361016109,1747205866117,-353.87994534,0.00039,120]
[361016110,1747205866143,-1374.1977,0.00039088,30]
[361016111,1747205866168,-1374.1977,0.00039288,30]
[361016112,1747205866194,-160.0,0.000393,30]
[361016113,1747205866220,-160.0,0.000393,30]
[361016114,1747205866245,-174.22612334,0.00039452,120]
[361016115,1747205866272,-1374.1977,0.00039488,30]
[361016116,1747205866297,-500.0,0.00039555,120]
[361016117,1747205866323,-500.0,0.00039655,120]
[361016118,1747205866348,-1374.1977,0.00039688,30]
[361016119,1747205866375,-807.45948998,0.00039755,120]
[361016120,1747205866399,-1305.59652546,0.000398,30]
[361016121,1747205866427,-496.34,0.000398,120]
[361016122,1747205866455,-748.56708511,0.0003987,45]
[361016123,1747205866482,-437.0,0.00039886,90]
[361016124,1747205866509,-1374.1977,0.00039888,30]
[361016125,1747205866535,-1172.8548391,0.000399,120]
[361016126,1747205866560,-398.57991373,0.00039987,30]
[361016127,1747205866585,-15156.45419153,0.0003999,120]
[361016128,1747205866615,-50000.0,0.0004,40]
[361016129,1747205866641,-500.0,0.0004,120]
[361016130,1747205866668,-900.0,0.0004,41]
[361016131,1747205866694,-477.12749073,0.0004,30]
[361016132,1747205866721,-709.45889659,0.0004,120]
[361016133,1747205866747,-326.86087752,0.0004,120]
[361016134,1747205866774,-346.1242566,0.0004,30]
[361016135,1747205866801,-237.54985356,0.0004,30]
[361016136,1747205866827,-199.00457898,0.0004,30]
[361016137,1747205866853,-1167.25414372,0.0004,30]
[361016138,1747205866878,-551.69283122,0.0004,30]
[361016139,1747205866905,-500.0,0.0004,30]
[361016140,1747205866932,-1500.0,0.0004,120]
[361016141,1747205866960,-2000.0,0.0004,120]
[361016142,1747205866987,-2002.62346851,0.0004,30]
[361016143,1747205867012,-265.0,0.0004,120]
[361016144,1747205867041,-1405.0,0.0004,30]
[361016145,1747205867068,-6722.167044,0.0004,30]
[361016146,1747205867095,-206.4,0.0004,120]
[361016147,1747205867121,-5000.0,0.0004,30]
[361016148,1747205867147,-1374.1977,0.00040088,30]
[361016149,1747205867173,-1374.1977,0.00040288,30]
[361016150,1747205867200,-160.0,0.000403,34]
[361016151,1747205867227,-160.0,0.000403,34]
[361016152,1747205867253,-150.0,0.00040385,120]
[361016153,1747205867280,-1374.1977,0.00040488,30]
[361016154,1747205867306,-22193.96741739,0.000405,120]
[361016155,1747205867333,-150.0,0.00040509,120]
[361016156,1747205867361,-150.0,0.00040587,120]
[361016157,1747205867388,-150.0,0.00040597,120]
[361016158,1747205867415,-888.0,0.00040603,30]
[361016159,1747205867443,-1374.1977,0.00040688,30]
[361016160,1747205867475,-150.0,0.00040704,120]
[361016161,1747205867503,-969.0,0.00040746,60]
[361016162,1747205867529,-276.00544173,0.000408,60]
[361016163,1747205867555,-500.0,0.0004081,30]
[361016164,1747205867580,-1374.1977,0.00040888,30]
[361016165,1747205867607,-150.0,0.00040888,120]
[361016166,1747205867636,-50000.0,0.00041,41]
[361016167,1747205867664,-900.0,0.00041,42]
[361016168,1747205867692,-422.75512155,0.00041,120]
[361016169,1747205867725,-509.41256618,0.00041,120]
[361016170,1747205867754,-678.83,0.00041,120]
[361016171,1747205867780,-4212.0,0.00041,117]
[361016172,1747205867805,-1374.1977,0.00041088,30]
[361016173,1747205867831,-1000.0,0.00041095,120]
[361016174,1747205867856,-1000.0,0.00041095,120]
[361016175,1747205867880,-1000.0,0.00041095,120]
[361016176,1747205867906,-1000.0,0.00041095,120]
[361016177,1747205867932,-1000.0,0.00041095,120]
[361016178,1747205867958,-1000.0,0.00041095,120]
[361016179,1747205867986,-1000.0,0.00041095,120]
[361016180,1747205868011,-1000.0,0.00041095,120]
[361016181,1747205868038,-1000.0,0.00041095,120]
[361016182,1747205868068,-1000.0,0.00041095,120]
[361016183,1747205868094,-1000.0,0.00041095,120]
[361016184,1747205868120,-1000.0,0.00041095,120]
[361016185,1747205868146,-1000.0,0.00041095,120]
[361016186,1747205868172,-1000.0,0.00041095,120]
[361016187,1747205868198,-1000.0,0.00041095,120]
[361016188,1747205868223,-1000.0,0.00041095,120]
[361016189,1747205868249,-1000.0,0.00041095,120]
[361016190,1747205868276,-1000.0,0.00041095,120]
[361016191,1747205868301,-1000.0,0.00041095,120]
[361016192,1747205868328,-1000.0,0.00041095,120]
[361016193,1747205868354,-744.58109053,0.00041095,120]
[361016194,1747205868581,-3227.62902278,0.00041095,120]
[361016195,1747205868608,-337.0,0.00041096,90]
[361016196,1747205868635,-2000.0,0.00041096,30]
[361016197,1747205868662,-2000.0,0.00041096,30]
[361016198,1747205868688,-2000.0,0.00041096,30]
[361016199,1747205868714,-2000.0,0.00041096,30]
[361016200,1747205868740,-2000.0,0.00041096,30]
[361016201,1747205868766,-2000.0,0.00041096,30]
[361016202,1747205868792,-2000.0,0.00041096,30]
[361016203,1747205868821,-1975.0,0.00041096,30]
[361016204,1747205868846,-500.0,0.00041096,30]
[361016205,1747205868873,-500.0,0.00041096,30]
[361016206,1747205868899,-500.0,0.00041096,30]
[361016207,1747205868925,-500.0,0.00041096,30]
[361016208,1747205868950,-500.0,0.00041096,30]
[361016209,1747205868976,-500.0,0.00041096,30]
[361016210,1747205869002,-500.0,0.00041096,30]
[361016211,1747205869027,-500.0,0.00041096,30]
[361016212,1747205869056,-500.0,0.00041096,30]
[361016213,1747205869083,-504.0,0.00041096,30]
[361016214,1747205869109,-2000.0,0.00041096,30]
[361016215,1747205869137,-2000.0,0.00041096,30]
[361016216,1747205869163,-2000.0,0.00041096,30]
[361016217,1747205869187,-500.0,0.00041096,30]
[361016218,1747205869213,-500.0,0.00041096,30]
[361016219,1747205869239,-500.0,0.00041096,30]
[361016220,1747205869265,-500.0,0.00041096,30]
[361016221,1747205869290,-500.0,0.00041096,30]
[361016222,1747205869315,-500.0,0.00041096,30]
[361016223,1747205869341,-500.0,0.00041096,30]
[361016224,1747205869366,-500.0,0.00041096,30]
[361016225,1747205869391,-500.0,0.00041096,30]
[361016226,1747205869416,-500.0,0.00041096,30]
[361016227,1747205869440,-500.0,0.00041096,30]
[361016228,1747205869468,-500.0,0.00041096,30]
[361016229,1747205869495,-500.0,0.00041096,30]
[361016230,1747205869521,-500.0,0.00041096,30]
[361016231,1747205869547,-500.0,0.00041096,30]
[361016232,1747205869573,-500.0,0.00041096,30]
[361016233,1747205869598,-500.0,0.00041096,30]
[361016234,1747205869623,-500.0,0.00041096,30]
[361016235,1747205869649,-500.0,0.00041096,30]
[361016236,1747205869675,-500.0,0.00041096,30]
[361016237,1747205869702,-500.0,0.00041096,30]
[361016238,1747205869728,-500.0,0.00041096,30]
[361016239,1747205869754,-500.0,0.00041096,30]
[361016240,1747205869779,-500.0,0.00041096,30]
[361016241,1747205869805,-500.0,0.00041096,30]
[361016242,1747205869831,-500.0,0.00041096,30]
[361016243,1747205869856,-500.0,0.00041096,30]
[361016244,1747205869881,-500.0,0.00041096,30]
[361016245,1747205869907,-500.0,0.00041096,30]
[361016246,1747205869933,-500.0,0.00041096,30]
[361016247,1747205869960,-500.0,0.00041096,30]
[361016248,1747205869986,-500.0,0.00041096,30]
[361016249,1747205870012,-500.0,0.00041096,30]
[361016250,1747205870041,-500.0,0.00041096,30]
[361016251,1747205870067,-500.0,0.00041096,30]
[361016252,1747205870096,-500.0,0.00041096,30]
[361016253,1747205870123,-500.0,0.00041096,30]
[361016254,1747205870148,-500.0,0.00041096,30]
[361016255,1747205870174,-500.0,0.00041096,30]
[361016256,1747205870198,-500.0,0.00041096,30]
[361016257,1747205870224,-500.0,0.00041096,30]
[361016258,1747205870251,-500.0,0.00041096,30]
[361016259,1747205870276,-500.0,0.00041096,30]
[361016260,1747205870302,-500.0,0.00041096,30]
[361016261,1747205870327,-500.0,0.00041096,30]
[361016262,1747205870352,-500.0,0.00041096,30]
[361016263,1747205870377,-511.0,0.00041096,30]
[361016264,1747205870403,-500.0,0.00041096,31]
[361016265,1747205870428,-500.0,0.00041096,31]
[361016266,1747205870453,-503.32723967,0.00041096,31]